fUST/lending_fUST_20250819
["ID","MTS","AMOUNT","RATE_DAILY","PERIOD"]
[380224146,1755616253766,-480.0,0.0002,2]
[380224147,1755616253775,-500.56842257,0.0002,2]
[380224148,1755616253785,-480.0,0.0002,2]
[380224149,1755616253794,-480.0,0.0002,2]
[380224150,1755616253803,-480.0,0.0002,2]
[380224151,1755616253812,-258.74418226,0.0002,2]
[380224152,1755616253822,-480.0,0.0002,2]
[380224153,1755616253831,-419.24200857,0.0002,2]
[380224154,1755616253841,-480.0,0.0002,2]
[380224155,1755616253850,-555.34192878,0.0002,2]
[380224156,1755616253860,-480.0,0.0002,2]
[380224157,1755616253869,-480.0,0.0002,2]
[380224158,1755616253879,-480.0,0.0002,2]
[380224159,1755616253888,-480.0,0.0002,2]
[380224160,1755616253898,-480.0,0.0002,2]
[380224161,1755616253907,-603.12,0.0002,2]
[380224162,1755616253916,-480.0,0.0002,2]
[380224163,1755616253925,-480.0,0.0002,2]
[380224164,1755616253934,-480.0,0.0002,2]
[380224165,1755616253943,-480.0,0.0002,2]
[380224166,1755616253952,-480.0,0.0002,2]
[380224167,1755616253961,-1100.62,0.0002,2]
[380224168,1755616253970,-480.0,0.0002,2]
[380224169,1755616253980,-294.12,0.0002,2]
[380224170,1755616253989,-480.0,0.0002,2]
[380224171,1755616253998,-480.0,0.0002,2]
[380224172,1755616254010,-480.0,0.0002,2]
[380224173,1755616254020,-480.0,0.0002,2]
[380224174,1755616254029,-480.0,0.0002,2]
[380224175,1755616254038,-661.98,0.0002,2]
[380224176,1755616254048,-480.0,0.0002,2]
[380224177,1755616254057,-480.0,0.0002,2]
[380224178,1755616254069,-480.0,0.0002,2]
[380224179,1755616254078,-480.0,0.0002,2]
[380224180,1755616254088,-480.0,0.0002,2]
[380224181,1755616254099,-706.96,0.0002,2]
[380224182,1755616254108,-493.52,0.0002,2]
[380224183,1755616254118,-242.89,0.0002,2]
[380224184,1755616254128,-480.0,0.0002,2]
[380224185,1755616254138,-480.0,0.0002,2]
[380224186,1755616254149,-578.11398787,0.0002,2]
[380224187,1755616254160,-480.0,0.0002,2]
[380224188,1755616254171,-480.0,0.0002,2]
[380224189,1755616254181,-480.0,0.0002,2]
[380224190,1755616254191,-480.0,0.0002,2]
[380224191,1755616254202,-480.0,0.0002,2]
[380224192,1755616254212,-1185.93,0.0002,2]
[380224193,1755616254222,-480.0,0.0002,2]
[380224194,1755616254232,-480.0,0.0002,2]
[380224195,1755616254241,-480.0,0.0002,2]
[380224196,1755616254252,-770.15,0.0002,2]
[380224197,1755616254263,-480.0,0.0002,2]
[380224198,1755616254273,-480.0,0.0002,2]
[380224199,1755616254283,-570.68,0.0002,2]
[380224200,1755616254293,-480.0,0.0002,2]
[380224201,1755616254303,-480.0,0.0002,2]
[380224202,1755616254312,-480.0,0.0002,2]
[380224203,1755616254322,-480.0,0.0002,2]
[380224204,1755616254333,-601.52416939,0.0002,2]
[380224205,1755616254343,-173.75005363,0.0002,2]
[380224206,1755616254353,-480.0,0.0002,2]
[380224207,1755616254364,-480.0,0.0002,2]
[380224208,1755616254375,-498.68,0.0002,2]
[380224209,1755616254386,-480.0,0.0002,2]
[380224210,1755616254397,-480.0,0.0002,2]
[380224211,1755616254408,-480.0,0.0002,2]
[380224212,1755616254419,-480.0,0.0002,2]
[380224213,1755616254430,-480.0,0.0002,2]
[380224214,1755616254441,-2730.0,0.0002,2]
[380224215,1755616254452,-480.0,0.0002,2]
[380224216,1755616254463,-544.36,0.0002,2]
[380224217,1755616254474,-469.91576214,0.0002,2]
[380224218,1755616254486,-636.86,0.0002,2]
[380224219,1755616254498,-443.66953913,0.0002,2]
[380224220,1755616254523,-480.0,0.0002,2]
[380224221,1755616254536,-480.0,0.0002,2]
[380224222,1755616254548,-2825.73,0.0002,2]
[380224223,1755616254567,-480.0,0.0002,2]
[380224224,1755616254579,-577.81,0.0002,2]
[380224225,1755616254592,-480.0,0.0002,2]
[380224226,1755616254605,-480.0,0.0002,2]
[380224227,1755616254617,-211.74,0.0002,2]
[380224228,1755616254628,-480.0,0.0002,2]
[380224229,1755616254639,-480.0,0.0002,2]
[380224230,1755616254650,-480.0,0.0002,2]
[380224231,1755616254665,-1817.53,0.0002,2]
[380224232,1755616254677,-195.95233093,0.0002,2]
[380224233,1755616254688,-480.0,0.0002,2]
[380224234,1755616254700,-799.99,0.0002,2]
[380224235,1755616254711,-480.0,0.0002,2]
[380224236,1755616254722,-534.72,0.0002,2]
[380224237,1755616254734,-480.0,0.0002,2]
[380224238,1755616254745,-480.0,0.0002,2]
[380224239,1755616254757,-480.0,0.0002,2]
[380224240,1755616254772,-480.0,0.0002,2]
[380224241,1755616254783,-480.0,0.0002,2]
[380224242,1755616254794,-480.0,0.0002,2]
[380224243,1755616254805,-480.0,0.0002,2]
[380224244,1755616254816,-1000.0,0.00020021,2]
[380224245,1755616254826,-998.81323194,0.00020021,2]
[380224246,1755616254837,-1000.0,0.00020021,2]
[380224247,1755616254848,-3052.83698419,0.00020105,2]
[380224248,1755616254858,-395.505247,0.00020187,2]
[380224249,1755616254870,-1500.0,0.00020268,2]
[380224250,1755616254881,-776.17,0.00020272,2]
[380224251,1755616254892,-480.0,0.00020273,2]
[380224252,1755616254903,-560.52,0.00020273,2]
[380224253,1755616254914,-480.0,0.00020273,2]
[380224254,1755616254925,-2150.01,0.00020273,2]
[380224255,1755616254936,-480.0,0.00020273,2]
[380224256,1755616254947,-480.0,0.00020273,2]
[380224257,1755616254958,-480.0,0.00020273,2]
[380224258,1755616254970,-480.0,0.00020273,2]
[380224259,1755616254981,-480.0,0.00020273,2]
[380224260,1755616254991,-252.56,0.00020273,2]
[380224261,1755616255002,-480.0,0.00020273,2]
[380224262,1755616255012,-480.0,0.00020273,2]
[380224263,1755616255034,-480.0,0.00020273,2]
[380224264,1755616255044,-480.0,0.00020273,2]
[380224265,1755616255055,-480.0,0.00020273,2]
[380224266,1755616255070,-480.0,0.00020273,2]
[380224267,1755616255080,-480.0,0.00020273,2]
[380224268,1755616255090,-480.0,0.00020273,2]
[380224269,1755616255100,-480.0,0.00020273,2]
[380224270,1755616255111,-480.0,0.00020273,2]
[380224271,1755616255122,-480.0,0.00020273,2]
[380224272,1755616255133,-480.0,0.00020273,2]
[380224273,1755616255144,-480.0,0.00020273,2]
[380224274,1755616255154,-480.0,0.00020273,2]
[380224275,1755616255164,-480.0,0.00020273,2]
[380224276,1755616255175,-480.0,0.00020273,2]
[380224277,1755616255185,-551.13,0.00020273,2]
[380224278,1755616255195,-532.46,0.00020273,2]
[380224279,1755616255205,-480.0,0.00020273,2]
[380224280,1755616255214,-480.0,0.00020273,2]
[380224281,1755616255224,-480.0,0.00020273,2]
[380224282,1755616255234,-325.50678981,0.00020273,2]
[380224283,1755616255244,-480.0,0.00020273,2]
[380224284,1755616255253,-736.97,0.00020273,2]
[380224285,1755616255263,-480.0,0.00020273,2]
[380224286,1755616255273,-480.0,0.00020273,2]
[380224287,1755616255283,-480.0,0.00020273,2]
[380224288,1755616255293,-480.0,0.00020273,2]
[380224289,1755616255302,-2321.29,0.00020273,2]
[380224290,1755616255312,-480.0,0.00020273,2]
[380224291,1755616255322,-480.0,0.00020273,2]
[380224292,1755616255331,-484.84837285,0.00020273,2]
[380224293,1755616255341,-480.0,0.00020273,2]
[380224294,1755616255351,-480.0,0.00020273,2]
[380224295,1755616255361,-480.0,0.00020273,2]
[380224296,1755616255371,-480.0,0.00020273,2]
[380224297,1755616255382,-640.78,0.00020273,2]
[380224298,1755616255392,-480.0,0.00020273,2]
[380224299,1755616255403,-480.0,0.00020273,2]
[380224300,1755616255413,-1158.02,0.00020273,2]
[380224301,1755616255424,-480.0,0.00020273,2]
[380224302,1755616255435,-480.0,0.00020273,2]
[380224303,1755616255445,-480.0,0.00020273,2]
[380224304,1755616255456,-480.0,0.00020273,2]
[380224305,1755616255467,-480.0,0.00020273,2]
[380224306,1755616255477,-480.0,0.00020273,2]
[380224307,1755616255488,-480.0,0.00020273,2]
[380224308,1755616255497,-480.0,0.00020273,2]
[380224309,1755616255507,-450.28,0.00020273,2]
[380224310,1755616255523,-480.0,0.00020273,2]
[380224311,1755616255535,-591.94,0.00020273,2]
[380224312,1755616255545,-480.0,0.00020273,2]
[380224313,1755616255555,-480.0,0.00020273,2]
[380224314,1755616255568,-480.0,0.00020273,2]
[380224315,1755616255579,-480.0,0.00020273,2]
[380224316,1755616255588,-480.0,0.00020273,2]
[380224317,1755616255599,-480.0,0.00020273,2]
[380224318,1755616255609,-1100.62,0.00020273,2]
[380224319,1755616255619,-480.0,0.00020273,2]
[380224320,1755616255630,-480.0,0.00020273,2]
[380224321,1755616255640,-480.0,0.00020273,2]
[380224322,1755616255650,-480.0,0.00020273,2]
[380224323,1755616255661,-480.0,0.00020273,2]
[380224324,1755616255670,-661.98,0.00020273,2]
[380224325,1755616255680,-480.0,0.00020273,2]
[380224326,1755616255691,-480.0,0.00020273,2]
[380224327,1755616255825,-480.0,0.00020273,2]
[380224328,1755616255836,-480.0,0.00020273,2]
[380224329,1755616255846,-480.0,0.00020273,2]
[380224330,1755616255857,-706.96,0.00020273,2]
[380224331,1755616255867,-480.0,0.00020273,2]
[380224332,1755616255877,-480.0,0.00020273,2]
[380224333,1755616255887,-480.0,0.00020273,2]
[380224334,1755616255897,-480.0,0.00020273,2]
[380224335,1755616255907,-480.0,0.00020273,2]
[380224336,1755616255916,-480.0,0.00020273,2]
[380224337,1755616255926,-1185.93,0.00020273,2]
[380224338,1755616255936,-480.0,0.00020273,2]
[380224339,1755616255946,-480.0,0.00020273,2]
[380224340,1755616255956,-480.0,0.00020273,2]
[380224341,1755616255965,-770.15,0.00020273,2]
[380224342,1755616255975,-480.0,0.00020273,2]
[380224343,1755616255986,-480.0,0.00020273,2]
[380224344,1755616255996,-305.88,0.00020273,2]
[380224345,1755616256006,-480.0,0.00020273,2]
[380224346,1755616256019,-480.0,0.00020273,2]
[380224347,1755616256029,-480.0,0.00020273,2]
[380224348,1755616256039,-480.0,0.00020273,2]
[380224349,1755616256048,-498.68,0.00020273,2]
[380224350,1755616256060,-480.0,0.00020273,2]
[380224351,1755616256069,-480.0,0.00020273,2]
[380224352,1755616256082,-480.0,0.00020273,2]
[380224353,1755616256092,-480.0,0.00020273,2]
[380224354,1755616256103,-2730.0,0.00020273,2]
[380224355,1755616256113,-480.0,0.00020273,2]
[380224356,1755616256123,-636.86,0.00020273,2]
[380224357,1755616256132,-480.0,0.00020273,2]
[380224358,1755616256141,-480.0,0.00020273,2]
[380224359,1755616256151,-2825.73,0.00020273,2]
[380224360,1755616256160,-480.0,0.00020273,2]
[380224361,1755616256170,-577.81,0.00020273,2]
[380224362,1755616256180,-480.0,0.00020273,2]
[380224363,1755616256189,-480.0,0.00020273,2]
[380224364,1755616256198,-480.0,0.00020273,2]
[380224365,1755616256207,-1817.53,0.00020273,2]
[380224366,1755616256217,-480.0,0.00020273,2]
[380224367,1755616256227,-799.99,0.00020273,2]
[380224368,1755616256236,-480.0,0.00020273,2]
[380224369,1755616256245,-480.0,0.00020273,2]
[380224370,1755616256255,-480.0,0.00020273,2]
[380224371,1755616256264,-480.0,0.00020273,2]
[380224372,1755616256277,-480.0,0.00020273,2]
[380224373,1755616256287,-480.0,0.00020273,2]
[380224374,1755616256297,-480.0,0.00020273,2]
[380224375,1755616256306,-5306.44058765,0.00020313,2]
[380224376,1755616256316,-1000.0,0.00020321,2]
[380224377,1755616256325,-1000.0,0.00020321,2]
[380224378,1755616256335,-572.03085935,0.00020321,2]
[380224379,1755616256345,-764.81415349,0.00020321,2]
[380224380,1755616256355,-1000.0,0.00020321,2]
[380224381,1755616256365,-1000.0,0.00020321,2]
[380224382,1755616256375,-3052.83698419,0.00020447,2]
[380224383,1755616256385,-160.0,0.00020448,2]
[380224384,1755616256394,-528.6845513,0.00020448,2]
[380224385,1755616256404,-417.15472785,0.00020448,2]
[380224386,1755616256413,-160.0,0.00020448,2]
[380224387,1755616256425,-215.79176414,0.00020448,2]
[380224388,1755616256434,-216.8835046,0.00020448,2]
[380224389,1755616256444,-232.21311493,0.00020449,2]
[380224390,1755616256453,-160.0,0.00020449,2]
[380224391,1755616256463,-375.88899365,0.00020449,2]
[380224392,1755616256472,-12685.85563623,0.00020449,2]
[380224393,1755616256482,-843.93972674,0.00020449,2]
[380224394,1755616256492,-260.0,0.00020535,2]
[380224395,1755616256502,-776.17,0.00020546,2]
[380224396,1755616256511,-480.0,0.00020547,2]
[380224397,1755616256524,-2150.01,0.00020547,2]
[380224398,1755616256534,-480.0,0.00020547,2]
[380224399,1755616256543,-480.0,0.00020547,2]
[380224400,1755616256552,-480.0,0.00020547,2]
[380224401,1755616256561,-491.44,0.00020547,2]
[380224402,1755616256571,-480.0,0.00020547,2]
[380224403,1755616256580,-480.0,0.00020547,2]
[380224404,1755616256590,-480.0,0.00020547,2]
[380224405,1755616256600,-480.0,0.00020547,2]
[380224406,1755616256611,-480.0,0.00020547,2]
[380224407,1755616256620,-344.79,0.00020547,2]
[380224408,1755616256630,-592.79,0.00020547,2]
[380224409,1755616256639,-480.0,0.00020547,2]
[380224410,1755616256649,-480.0,0.00020547,2]
[380224411,1755616256659,-480.0,0.00020547,2]
[380224412,1755616256668,-480.0,0.00020547,2]
[380224413,1755616256678,-480.0,0.00020547,2]
[380224414,1755616256687,-480.0,0.00020547,2]
[380224415,1755616256697,-480.0,0.00020547,2]
[380224416,1755616256707,-480.0,0.00020547,2]
[380224417,1755616256716,-480.0,0.00020547,2]
[380224418,1755616256725,-736.97,0.00020547,2]
[380224419,1755616256735,-480.0,0.00020547,2]
[380224420,1755616256744,-198.45,0.00020547,2]
[380224421,1755616256754,-2321.29,0.00020547,2]
[380224422,1755616256763,-480.0,0.00020547,2]
[380224423,1755616256776,-480.0,0.00020547,2]
[380224424,1755616256786,-480.0,0.00020547,2]
[380224425,1755616256796,-187.96,0.00020547,2]
[380224426,1755616256806,-640.78,0.00020547,2]
[380224427,1755616256816,-480.0,0.00020547,2]
[380224428,1755616256825,-480.0,0.00020547,2]
[380224429,1755616256835,-1158.02,0.00020547,2]
[380224430,1755616256845,-480.0,0.00020547,2]
[380224431,1755616256854,-480.0,0.00020547,2]
[380224432,1755616256863,-480.0,0.00020547,2]
[380224433,1755616256873,-480.0,0.00020547,2]
[380224434,1755616256882,-480.0,0.00020547,2]
[380224435,1755616256892,-480.0,0.00020547,2]
[380224436,1755616256902,-480.0,0.00020547,2]
[380224437,1755616256911,-480.0,0.00020547,2]
[380224438,1755616256920,-480.0,0.00020547,2]
[380224439,1755616256930,-458.44102603,0.00020547,2]
[380224440,1755616256939,-480.0,0.00020547,2]
[380224441,1755616256948,-1100.62,0.00020547,2]
[380224442,1755616256957,-480.0,0.00020547,2]
[380224443,1755616256967,-480.0,0.00020547,2]
[380224444,1755616256978,-462.67,0.00020547,2]
[380224445,1755616256987,-480.0,0.00020547,2]
[380224446,1755616256998,-480.0,0.00020547,2]
[380224447,1755616257008,-480.0,0.00020547,2]
[380224448,1755616257019,-661.98,0.00020547,2]
[380224449,1755616257029,-480.0,0.00020547,2]
[380224450,1755616257044,-480.0,0.00020547,2]
[380224451,1755616257060,-480.0,0.00020547,2]
[380224452,1755616257072,-480.0,0.00020547,2]
[380224453,1755616257082,-480.0,0.00020547,2]
[380224454,1755616257091,-706.96,0.00020547,2]
[380224455,1755616257102,-432.30581439,0.00020547,2]
[380224456,1755616257112,-480.0,0.00020547,2]
[380224457,1755616257122,-480.27,0.00020547,2]
[380224458,1755616257137,-480.0,0.00020547,2]
[380224459,1755616257157,-480.0,0.00020547,2]
[380224460,1755616257181,-480.0,0.00020547,2]
[380224461,1755616257196,-1185.93,0.00020547,2]
[380224462,1755616257210,-480.0,0.00020547,2]
[380224463,1755616257222,-340.0,0.00020547,2]
[380224464,1755616257234,-480.0,0.00020547,2]
[380224465,1755616257247,-770.15,0.00020547,2]
[380224466,1755616257260,-480.0,0.00020547,2]
[380224467,1755616257275,-480.0,0.00020547,2]
[380224468,1755616257288,-480.0,0.00020547,2]
[380224469,1755616257301,-480.0,0.00020547,2]
[380224470,1755616257315,-378.18126957,0.00020547,2]
[380224471,1755616257329,-480.0,0.00020547,2]
[380224472,1755616257343,-498.68,0.00020547,2]
[380224473,1755616257355,-480.0,0.00020547,2]
[380224474,1755616257368,-205.15,0.00020547,2]
[380224475,1755616257380,-480.0,0.00020547,2]
[380224476,1755616257393,-2730.0,0.00020547,2]
[380224477,1755616257408,-480.0,0.00020547,2]
[380224478,1755616257419,-636.86,0.00020547,2]
[380224479,1755616257431,-480.0,0.00020547,2]
[380224480,1755616257442,-480.0,0.00020547,2]
[380224481,1755616257454,-2825.73,0.00020547,2]
[380224482,1755616257466,-577.81,0.00020547,2]
[380224483,1755616257478,-480.0,0.00020547,2]
[380224484,1755616257491,-480.0,0.00020547,2]
[380224485,1755616257505,-352.29,0.00020547,2]
[380224486,1755616257518,-1817.53,0.00020547,2]
[380224487,1755616257533,-480.0,0.00020547,2]
[380224488,1755616257547,-799.99,0.00020547,2]
[380224489,1755616257560,-480.0,0.00020547,2]
[380224490,1755616257573,-480.0,0.00020547,2]
[380224491,1755616257583,-480.0,0.00020547,2]
[380224492,1755616257594,-480.0,0.00020547,2]
[380224493,1755616257605,-354.43,0.00020547,2]
[380224494,1755616257617,-1500.0,0.00020568,2]
[380224495,1755616257632,-388.53797475,0.00020568,2]
[380224496,1755616257645,-151.0,0.000207,4]
[380224497,1755616257656,-5306.44058765,0.00020725,2]
[380224498,1755616257668,-972.0,0.0002078,2]
[380224499,1755616257679,-2153.0,0.0002078,2]
[380224500,1755616257692,-637.0,0.0002078,2]
[380224501,1755616257703,-300.0,0.00020788,2]
[380224502,1755616257714,-1680.0,0.00020789,2]
[380224503,1755616257725,-420.0,0.00020792,2]
[380224504,1755616257737,-398.0,0.00020792,2]
[380224505,1755616257748,-300.0,0.00020792,2]
[380224506,1755616257759,-2000.0,0.00020816,2]
[380224507,1755616257771,-480.0,0.00020821,2]
[380224508,1755616257783,-2150.01,0.00020821,2]
[380224509,1755616257795,-480.0,0.00020821,2]
[380224510,1755616257806,-480.0,0.00020821,2]
[380224511,1755616257817,-515.51,0.00020821,2]
[380224512,1755616257829,-480.0,0.00020821,2]
[380224513,1755616257841,-480.0,0.00020821,2]
[380224514,1755616257852,-480.0,0.00020821,2]
[380224515,1755616257864,-480.0,0.00020821,2]
[380224516,1755616257875,-548.95489268,0.00020821,2]
[380224517,1755616257886,-480.0,0.00020821,2]
[380224518,1755616257897,-480.0,0.00020821,2]
[380224519,1755616257908,-480.0,0.00020821,2]
[380224520,1755616257919,-411.41,0.00020821,2]
[380224521,1755616257939,-736.97,0.00020821,2]
[380224522,1755616257951,-480.0,0.00020821,2]
[380224523,1755616257962,-2321.29,0.00020821,2]
[380224524,1755616257973,-480.0,0.00020821,2]
[380224525,1755616257984,-640.78,0.00020821,2]
[380224526,1755616257995,-480.0,0.00020821,2]
[380224527,1755616258007,-1158.02,0.00020821,2]
[380224528,1755616258018,-480.0,0.00020821,2]
[380224529,1755616258031,-480.0,0.00020821,2]
[380224530,1755616258042,-480.0,0.00020821,2]
[380224531,1755616258053,-480.0,0.00020821,2]
[380224532,1755616258066,-473.4350644,0.00020821,2]
[380224533,1755616258079,-480.0,0.00020821,2]
[380224534,1755616258091,-351.49267608,0.00020821,2]
[380224535,1755616258102,-480.0,0.00020821,2]
[380224536,1755616258114,-1100.62,0.00020821,2]
[380224537,1755616258126,-480.0,0.00020821,2]
[380224538,1755616258137,-492.66,0.00020821,2]
[380224539,1755616258148,-480.0,0.00020821,2]
[380224540,1755616258160,-661.98,0.00020821,2]
[380224541,1755616258171,-480.0,0.00020821,2]
[380224542,1755616258182,-480.0,0.00020821,2]
[380224543,1755616258193,-352.43,0.00020821,2]
[380224544,1755616258206,-706.96,0.00020821,2]
[380224545,1755616258217,-480.0,0.00020821,2]
[380224546,1755616258228,-480.0,0.00020821,2]
[380224547,1755616258240,-480.0,0.00020821,2]
[380224548,1755616258251,-1185.93,0.00020821,2]
[380224549,1755616258262,-480.0,0.00020821,2]
[380224550,1755616258275,-480.0,0.00020821,2]
[380224551,1755616258286,-770.15,0.00020821,2]
[380224552,1755616258297,-480.0,0.00020821,2]
[380224553,1755616258309,-480.0,0.00020821,2]
[380224554,1755616258320,-480.0,0.00020821,2]
[380224555,1755616258331,-480.0,0.00020821,2]
[380224556,1755616258341,-480.0,0.00020821,2]
[380224557,1755616258353,-498.68,0.00020821,2]
[380224558,1755616258364,-480.0,0.00020821,2]
[380224559,1755616258376,-2730.0,0.00020821,2]
[380224560,1755616258387,-480.0,0.00020821,2]
[380224561,1755616258399,-636.86,0.00020821,2]
[380224562,1755616258410,-480.0,0.00020821,2]
[380224563,1755616258422,-480.0,0.00020821,2]
[380224564,1755616258433,-2825.73,0.00020821,2]
[380224565,1755616258444,-577.81,0.00020821,2]
[380224566,1755616258461,-498.86,0.00020821,2]
[380224567,1755616258473,-1817.53,0.00020821,2]
[380224568,1755616258484,-480.0,0.00020821,2]
[380224569,1755616258495,-799.99,0.00020821,2]
[380224570,1755616258506,-480.0,0.00020821,2]
[380224571,1755616258518,-480.0,0.00020821,2]
[380224572,1755616258532,-239.86,0.00020821,2]
[380224573,1755616258543,-480.0,0.00020821,2]
[380224574,1755616258554,-1071.54091121,0.00020868,2]
[380224575,1755616258565,-663.9749631,0.00020868,2]
[380224576,1755616258576,-1000.0,0.00020868,2]
[380224577,1755616258587,-151.0,0.000209,4]
[380224578,1755616258598,-1000.0,0.0002096,2]
[380224579,1755616258610,-1000.0,0.0002096,2]
[380224580,1755616258621,-1000.0,0.0002096,2]
[380224581,1755616258633,-1000.0,0.0002096,2]
[380224582,1755616258644,-1000.27116181,0.0002096,2]
[380224583,1755616258656,-17842.522448,0.0002096,2]
[380224584,1755616258667,-151.0,0.0002096,2]
[380224585,1755616258678,-151.0,0.0002096,2]
[380224586,1755616258689,-151.0,0.0002096,2]
[380224587,1755616258701,-151.0,0.0002096,2]
[380224588,1755616258718,-151.0,0.0002096,2]
[380224589,1755616258735,-151.0,0.0002096,2]
[380224590,1755616258747,-151.0,0.0002096,2]
[380224591,1755616258759,-151.0,0.0002096,2]
[380224592,1755616258772,-151.0,0.0002096,2]
[380224593,1755616258785,-151.0,0.0002096,2]
[380224594,1755616258801,-151.0,0.0002096,2]
[380224595,1755616258813,-151.0,0.0002096,2]
[380224596,1755616258989,-151.0,0.0002096,2]
[380224597,1755616259014,-151.0,0.0002096,2]
[380224598,1755616259026,-151.0,0.0002096,2]
[380224599,1755616259036,-156.57910944,0.0002096,2]
[380224600,1755616259045,-151.0,0.0002096,2]
[380224601,1755616259056,-151.0,0.0002096,2]
[380224602,1755616259068,-151.0,0.0002096,2]
[380224603,1755616259078,-151.32576864,0.0002096,2]
[380224604,1755616259087,-151.0,0.0002096,2]
[380224605,1755616259097,-151.0,0.0002096,2]
[380224606,1755616259109,-151.0,0.0002096,2]
[380224607,1755616259118,-151.0,0.0002096,2]
[380224608,1755616259127,-151.0,0.0002096,2]
[380224609,1755616259136,-151.0,0.0002096,2]
[380224610,1755616259147,-151.0,0.0002096,2]
[380224611,1755616259156,-151.0,0.0002096,2]
[380224612,1755616259165,-151.0,0.0002096,2]
[380224613,1755616259175,-151.0,0.0002096,2]
[380224614,1755616259185,-151.0,0.0002096,2]
[380224615,1755616259194,-151.0,0.0002096,2]
[380224616,1755616259204,-237.28236603,0.0002096,2]
[380224617,1755616259213,-2183.31810187,0.0002096,2]
[380224618,1755616259222,-151.0,0.0002096,2]
[380224619,1755616259231,-151.0,0.0002096,2]
[380224620,1755616259240,-151.8438654,0.0002096,2]
[380224621,1755616259250,-158.0,0.00020986,3]
[380224622,1755616259259,-5145.326496,0.00021,2]
[380224623,1755616259269,-2264.10087164,0.00021015,2]
[380224624,1755616259279,-2347.87260389,0.0002107,2]
[380224625,1755616259288,-500.0,0.00021077,2]
[380224626,1755616259297,-500.0,0.00021077,2]
[380224627,1755616259307,-500.0,0.00021077,2]
[380224628,1755616259317,-500.0,0.00021077,2]
[380224629,1755616259326,-500.0,0.00021077,2]
[380224630,1755616259336,-500.0,0.00021081,2]
[380224631,1755616259345,-500.0,0.00021081,2]
[380224632,1755616259354,-500.93475902,0.00021081,2]
[380224633,1755616259364,-360.0,0.00021083,2]
[380224634,1755616259373,-480.0,0.00021095,2]
[380224635,1755616259383,-2150.01,0.00021095,2]
[380224636,1755616259392,-480.0,0.00021095,2]
[380224637,1755616259401,-480.0,0.00021095,2]
[380224638,1755616259410,-245.83,0.00021095,2]
[380224639,1755616259420,-480.0,0.00021095,2]
[380224640,1755616259429,-480.0,0.00021095,2]
[380224641,1755616259438,-300.11,0.00021095,2]
[380224642,1755616259447,-480.0,0.00021095,2]
[380224643,1755616259456,-480.0,0.00021095,2]
[380224644,1755616259466,-736.97,0.00021095,2]
[380224645,1755616259475,-480.0,0.00021095,2]